Workbook

Sheet I.A ütem ELŐLAP
C28: TÉTELES TERVEZŐI KÖLTSÉGVETÉS
C29: KÉSZÜLT A 2112 VERESEGYHÁZ, FŐ ÚT 117-125 HRSZ: 58 SZÁM ALATT LÉTESÍTENDŐ
C30: VERESEGYHÁZI KATOLIKUS GIMNÁZIUM
C31: BELSŐÉPÍTÉSZETI TENDERDOKUMENTÁCIÓJÁHOZ
C32: I.A ÜTEM
C36: MEGBÍZÓ : | D36: EGYHÁZMEGYEI KATOLIKUS ISKOLÁK FŐHATÓSÁGA
D37: 2600 VÁC, MIGAZZI KRISTÓF TÉR 1.
C39: TERVEZŐ : | D39: TÉRLABOR KFT
D40: 1116 BUDAPEST, HUNYADI M. ÚT 32 2/2.
C44: KÉSZÜLT : | D44: BUDAPEST, 2017. SZEPTEMBER 15.

Sheet I.A ütem Összesítő
B5: KÖLTSÉGVETÉS MUNKANEM ÖSSZESÍTŐ
B6: ='I.A ütem ELŐLAP'!C29 -> KÉSZÜLT A 2112 VERESEGYHÁZ, FŐ ÚT 117-125 HRSZ: 58 SZÁM ALATT LÉTESÍTENDŐ
B7: ='I.A ütem ELŐLAP'!C30 -> VERESEGYHÁZI KATOLIKUS GIMNÁZIUM
B8: ='I.A ütem ELŐLAP'!C31 -> BELSŐÉPÍTÉSZETI TENDERDOKUMENTÁCIÓJÁHOZ
B9: 1.A ÜTEM
B13: Ssz | C13: Munkanem megnevezése | D13: Anyag összege | E13: Díj összege
B14: 1 | C14: Belsőépítészeti falazások | D14: ='I.A ütem kv'!H13 -> 0 | E14: ='I.A ütem kv'!I13 -> 0
B15: 2 | C15: Belsőépítészeti szárazépítés | D15: ='I.A ütem kv'!H23 -> 0 | E15: ='I.A ütem kv'!I23 -> 0
B16: 3 | C16: Burkolás belső térben | D16: ='I.A ütem kv'!H86 -> 0 | E16: ='I.A ütem kv'!I86 -> 0
B17: 4 | C17: Belsőépítészeti belső nyílászárók ( B jelű ) | D17: ='I.A ütem kv'!H191 -> 0 | E17: ='I.A ütem kv'!I191 -> 0
B18: 5 | C18: Felületképzés | D18: ='I.A ütem kv'!H201 -> 0 | E18: ='I.A ütem kv'!I201 -> 0
B19: 7 | C19: Belsőépítészeti lakatos szerkezetek ( BL jelű ) | D19: ='I.A ütem kv'!H236 -> 0 | E19: ='I.A ütem kv'!I236 -> 0
B20: 6 | C20: Beépített bútorozás ( BA jelű ) | D20: ='I.A ütem kv'!H378 -> 0 | E20: ='I.A ütem kv'!I378 -> 0
B21: 8 | C21: Vízesblokk paravánfalak ( BF jelű ) | D21: ='I.A ütem kv'!H418 -> 0 | E21: ='I.A ütem kv'!I418 -> 0
B22: 9 | C22: Mosdópultok ( BP jelű ) | D22: ='I.A ütem kv'!H448 -> 0 | E22: ='I.A ütem kv'!I448 -> 0
C23: Nettó anyag és díj összesen : | D23: =SUM(D14:D22) -> 0 | E23: =SUM(E14:E22) -> 0
C24: Nettó anyag + díj összesen : | D24: =D23+E23 -> 0 Ft
C25: ÁFA 27 % | D25: =D24*0.27 -> 0 Ft
C26: Bruttó anyag + díj összesen : | D26: =ROUND(SUM(D24:D25),0) -> 0 Ft

Sheet I.A ütem kv
B2: TÉTELES TERVEZŐI KÖLTSÉGVETÉS
B3: ='I.A ütem ELŐLAP'!C29 -> KÉSZÜLT A 2112 VERESEGYHÁZ, FŐ ÚT 117-125 HRSZ: 58 SZÁM ALATT LÉTESÍTENDŐ
B4: ='I.A ütem ELŐLAP'!C30 -> VERESEGYHÁZI KATOLIKUS GIMNÁZIUM
B5: ='I.A ütem ELŐLAP'!C31 -> BELSŐÉPÍTÉSZETI TENDERDOKUMENTÁCIÓJÁHOZ
B6: ='I.A ütem ELŐLAP'!C32 -> I.A ÜTEM
B8: Ssz. | C8: Tétel szövege | D8: Menny. | E8: Egység | F8: Anyag egységár | G8: Díj egységre | H8: Anyag összesen | I8: Díj összesen
B10: BELSŐÉPÍTÉSZETI FALAZÁS
B11: 1 | C11: Lábazati fal készítése 1 sor YTONG válaszfaltéglából, 10 cm vastagságban, 15 cm magassággal, öltözőszekrények alatt. | D11: 24.15 | E11: fm | H11: =ROUND(D11*F11, 0) -> 0 | I11: =ROUND(D11*G11, 0) -> 0
B12: 2 | C12: Előtétfalak készítése YTONG válaszfaltéglából, 5 cm vastagságban, egyes folyosói szakaszokon. | D12: 4.68 | E12: m2 | H12: =ROUND(D12*F12, 0) -> 0 | I12: =ROUND(D12*G12, 0) -> 0
C13: MUNKANEM összesen : | H13: =SUM(H11:H12) -> 0 | I13: =SUM(I11:I12) -> 0
B16: BELSŐÉPÍTÉSZETI SZÁRAZÉPÍTÉS
B17: 1 | C17: Gipszkarton előtétfalak készítése vízesblokkban, falba épített WC tartályoknál, CW vázszerkezetre szerelt 2 réteg 12,5 mm-es impregnált gipszkarton lemez. | D17: 25.89 | E17: m2 | H17: =ROUND(D17*F17, 0) -> 0 | I17: =ROUND(D17*G17, 0) -> 0
B18: 2 | C18: Gipszkarton elburkolások készítése, CW vagy fa vázszerkezetre szerelt 1 réteg normál gipszkarton lemez, a jelzett helyeken a bútorok körül. | D18: 104.86 | E18: m2 | H18: =ROUND(D18*F18, 0) -> 0 | I18: =ROUND(D18*G18, 0) -> 0
B19: 3 | C19: Gipszkarton akusztikai falszerkezet készítése, CW75-ös vázszerkezetre 1x1 réteg 12,5 mm-es normál gipszkarton lemez, közte 7,5 cm vtg hanglágy ásványgyapot kitöltéssel. ( Fm-2 és Fm-3 falmetszet ) | D19: =53.24+8.83 -> 62.07 | E19: m2 | H19: 0 | I19: 0
C20: ÁLMENNYEZETEK ÉPÍTÉSZETI TERVEK SZERINT
B21: 4 | C21: Szerelt gipszkarton álmennyezet fém vázszerkezetre, választható ( rugós ) függesztéssel, csavarfejek és illesztések alapglettelve (Q2 minőségben), 1 rtg. 12,5 mm vtg. gipszkarton borítással, a szükséges helyeken revíziós nyílásokkal, valamint a gépészeti berendezések és a lámpahelyek kivágásával.
B22: 5 | C22: Akusztikus, szerelt gipszkarton álmennyezet készítése, fém vázszerkezetre, csavarfejek és illesztések glettelve (Q2 minőségben), Típusa : Rigitone Actív Air 15/30. Étteremben.
C23: MUNKANEM összesen : | H23: =SUM(H17:H22) -> 0 | I23: =SUM(I17:I22) -> 0
B26: BURKOLÁS BELSŐ TÉRBEN
B27: EGYÜTT KEZELENDŐ A MŰSZAKI SPECIFIKÁCIÓVAL ÉS A TERVEKKEL !
B28: A BURKOLÓ ANYAGOK CSAK BEMUTATOTT MINTA ALAPJÁN ÉPÍTHETŐK BE !
B29: A MUNKANEM ÁRKÉPZÉSE TARTALMAZZA AZ ELHELYEZÉSHEZ SZÜKSÉGES SEGÉDSZERKEZETEK / ALAPOZÁS, KIEGYENLÍTÉS, RAGASZTÓK, FUGÁK / , TÖMÍTÉSEK, ÉLVÉDŐK STB. ÁRÁT IS !
B30: I. | C30: PADLÓBURKOLATOK
B31: 1 | C31: Öntött betonpadló burkolat készítése ( 2-es típus )
C32: Ajánlott típusa ( vagy vele műszakilag egyenérkékű ): DUROSTONE DUROFLOW nagy teherbírású, önterrülő padlóhabarcs, 1 cm összvastagságban, amely áll :
C33: aljzatelőkészítés: Duroprimer 2 rétegben
C34: padlóhabarcs: Doroflow 6-10 mm vastagságban
C35: felületvédelem: Durocuring ideiglenes párazárás
C36: felületképzés: Harmony Vernis Prémium 2K rugalmas, kopásálló lakk
C37: Készül : ( folyosók, lépcsőelőtér ) | D37: 659.25 | E37: m2 | H37: =ROUND(D37*F37, 0) -> 0 | I37: =ROUND(D37*G37, 0) -> 0
B38: 2 | C38: Linóleum padlóburkolat, egyszínű, ( 1. típus)
C39: Ajánlott típusa ( vagy vele műszakilag egyenérkékű ): FORBO MARMOLEUM REAL/FRESCO/VIVACE, 2,5 mm vtg., amely áll :
C40: aljzatkiegyenlítés (pl. Forbo 044 alapozó, Forbo 975 aljzatkiegyenlítő)
C41: linóleum, felületfolytonosan hegesztve, ragasztva (Forbo 610)
C42: Javasolt színek: Fresco 3882 relaxing lagoon, Real 3238 laguna, Fresco 3828 blue heaven
C43: Készül : ( általános tantermek ) | D43: 714.6 | E43: m2 | H43: =ROUND(D43*F43, 0) -> 0 | I43: =ROUND(D43*G43, 0) -> 0
B44: 3 | C44: Linóleum padlóburkolat, egyszínű, ( 2. típus)
C45: Ajánlott típusa ( vagy vele műszakilag egyenérkékű ): FORBO MARMOLEUM STRIATO COLOUR, 2,5 mm vtg., amely áll :
C46: aljzatkiegyenlítés (pl. Forbo 044 alapozó, Forbo 975 aljzatkiegyenlítő)
C47: linóleum, felületfolytonosan hegesztve, ragasztva (Forbo 610)
C48: Javasolt színek: 5221 colour stream, 5241, sunshine yellow, 5242 red roses, 5243 peacock blue
C49: Készül : ( kiemelt tantermek ) | D49: 183.34 | E49: m2 | H49: =ROUND(D49*F49, 0) -> 0 | I49: =ROUND(D49*G49, 0) -> 0
B50: 4 | C50: Ragasztott parketta padlóburkolat ( 1. típus )
C51: Amely áll :
C52: aljzatkiegyenlítés
C53: csaphornyos keményfa tölgyparketta, 2,5 cm vastag, ragasztva
C54: olajozott felületképzés
C55: Készül : tanári blokk | D55: 225.5 | E55: m2 | H55: =ROUND(D55*F55, 0) -> 0 | I55: =ROUND(D55*G55, 0) -> 0
B56: 5 | C56: Csúszásmentes greslap padlóburkolat ragasztva, fugázva ( 1. típus )
C57: Ajánlott típusa ( vagy vele műszakilag egyenérkékű ): Zalakerámia CEMENTI ZRG 607 vagy ZGD 60607 típus, 30x60 cm méretben, matt szürke színben. Kopásállóság : min. PEI 4, csúszamentesség : min. R10.
C58: Készül : vízesblokkok | D58: 142.18 | E58: m2 | H58: =ROUND(D58*F58, 0) -> 0 | I58: =ROUND(D58*G58, 0) -> 0
B59: 6 | C59: Csúszásmentes greslap padlóburkolat ragasztva, fugázva ( 2. típus )
C60: Ajánlott típusa ( vagy vele műszakilag egyenérkékű ): Zalakerámia ARCHITECT TAURUS GRANIT TAA35076 76S típus, 30x30 cm méretben, matt szürke színben. Kopásállóság : min. PEI 4, csúszamentesség : min. R10.
C61: Készül : raktárak, alárendelt helyek | D61: 218.88 | E61: m2 | H61: =ROUND(D61*F61, 0) -> 0 | I61: =ROUND(D61*G61, 0) -> 0
B62: 7 | C62: Lépcsőburkolat készítése ( 1-es típus ) Előregyártott beton ( műkő ) lapok, terrazzo.
C63: Ajánlott típusa ( vagy vele műszakilag egyenérkékű ): DUROSTONE, DUROCOLOR TERAZZO, terrazzo 2 cm-es összvastagsággal. Felületkeményítő premix, pigmentált, speciális színes szemcsékkel dúsított, szárazhabarcsból, a belépő felületének első 5 cm-es sávja eltérő színezéssel, csúszásmentesített felületképzéssel, kopásállóság: A6, szemcseméret: 0-5 mm, rétegvastagság 6-15 mm.
B64: 7.1 | C64: Készül : ( járólap ) | D64: 168 | E64: fm | H64: =ROUND(D64*F64, 0) -> 0 | I64: =ROUND(D64*G64, 0) -> 0
B65: 7.2 | C65: Készül : ( homloklap ) | D65: 192 | E65: fm | H65: =ROUND(D65*F65, 0) -> 0 | I65: =ROUND(D65*G65, 0) -> 0
B66: II. | C66: LÁBAZATOK
B67: 8 | C67: Műkő lábazat, 8 mm vastagságban, 15 cm-es magassággal, Durosstone, fehér színben.
C68: Készül : betonpadlós helyiségekben, lépcsőházakban | D68: =144.48+344.29 -> 488.77 | E68: fm | H68: =ROUND(D68*F68, 0) -> 0 | I68: =ROUND(D68*G68, 0) -> 0
B69: 9 | C69: Rétegelt lemez lábazat, 15 mm vastagságban, 15 cm-es magassággal, r=3 mm-es fózzal, fehér páccal és 2 réteg matt vízesbázisú lakkal felületkezelve, szilikonprofilba ültetve .
C70: Készül : linóleum burkolatos helyiségekben | D70: 501.33 | E70: fm | H70: =ROUND(D70*F70, 0) -> 0 | I70: =ROUND(D70*G70, 0) -> 0
B71: 10 | C71: Rétegelt lemez lábazat, 15 mm vastagságban, 15 cm-es magassággal, r=3 mm-es fózzal, fehér páccal és 2 réteg matt vízesbázisú lakkal felületkezelve, szilikonprofil nélkül.
C72: Készül : parketta burkolatos helyiségekben | D72: 133.09 | E72: fm | H72: =ROUND(D72*F72, 0) -> 0 | I72: =ROUND(D72*G72, 0) -> 0
B73: 11 | C73: Vágott greslap lábazat, 15 cm-es magassággal, a padlóburkolat anyagával megegyező anyaggal
C74: Készül : greslap ( 2. típus ) burkolatos helyiségekben | D74: 207.93 | E74: fm | H74: =ROUND(D74*F74, 0) -> 0 | I74: =ROUND(D74*G74, 0) -> 0
B75: III. | C75: KERÁMIA FALBURKOLATOK
B76: 12 | C76: Csempe falburkolat készítése ragasztva, fugázva, a szükséges helyeken élvédőzve. Ajánlott típusa : ZALAKERÁMIA ARCHITECT CARNEVÁL ZBK 53001 vagy vele műszakilag egyenértékű, 20x50 cm-es méretben, fényes fehér színben, vízesblokkokban. | D76: 439.92 | E76: m2 | H76: =ROUND(D76*F76, 0) -> 0 | I76: =ROUND(D76*G76, 0) -> 0
B77: 13 | C77: Csempe falburkolat készítése ragasztva, fugázva, a szükséges helyeken élvédőzve. Ajánlott típusa : ZALAKERÁMIA ARCHITECT CARNEVÁL ZBR 502 vagy vele műszakilag egyenértékű, 20x20 cm-es méretben, matt fehér színben, alagsori szeményzeti vízesblokkban és konyhában., alárendelt helyeken, tanternmekben. | D77: 49.12 | E77: m2 | H77: =ROUND(D77*F77, 0) -> 0 | I77: =ROUND(D77*G77, 0) -> 0
B78: 14 | C78: Burkolat síkjába ragasztott tükör vízesblokokban. | D78: 28.3 | E78: m2 | H78: =ROUND(D78*F78, 0) -> 0 | I78: =ROUND(D78*G78, 0) -> 0
B79: IV. | C79: LINÓLEUM FALBURKOLATOK
B80: 15 | C80: Linóleum falburkolat burkolat készítése ( egyszínű ) Ajánlott típusa ( vagy vele műszakilag egyenérkékű ): FORBO MARMOLEUM Real/Fresco/Vivace, 2,5 mm vtg. Javasolt színek : Fresco 3882 relaxing lagoon, Real 3238 laguna, Fresco 3828 blue heaven. 1. típus. | D80: 129.49 | E80: m2 | H80: =ROUND(D80*F80, 0) -> 0 | I80: =ROUND(D80*G80, 0) -> 0
B81: 16 | C81: Linóleum falburkolat burkolat készítése (csíkos). Ajánlott típusa ( vagy vele műszakilag egyenérkékű ): FORBO MARMOLEUM Striato colour, 2,5 mm vtg. Javasolt színek: 5221 colour stream, 5241, sunshine yellow, 5242 red roses, 5243 peacock blue. 2. típus, 9.-es jelű. | D81: 48.76 | E81: m2 | H81: =ROUND(D81*F81, 0) -> 0 | I81: =ROUND(D81*G81, 0) -> 0
B82: V. | C82: EGYÉB
B83: 17 | C83: Burkolatváltóprofil elhelyezése rozsdamentes kivitelben, a küszöb nélküli helyeken és a burkolat típus váltásoknál | D83: 40.6 | E83: fm | H83: =ROUND(D83*F83, 0) -> 0 | I83: =ROUND(D83*G83, 0) -> 0
B84: 18 | C84: Dilatációs profil elhelyezése rozsdamentes kivitelben. | D84: 24.8 | E84: fm | H84: =ROUND(D84*F84, 0) -> 0 | I84: =ROUND(D84*G84, 0) -> 0
B85: 19 | C85: Folyosói beton padlóburkolatban utólag gravírozott felíratok kialakítása ( kiviteli terv része ) | D85: 7 | E85: hely | H85: =ROUND(D85*F85, 0) -> 0 | I85: =ROUND(D85*G85, 0) -> 0
C86: MUNKANEM összesen : | H86: =SUM(H37:H85) -> 0 | I86: =SUM(I37:I85) -> 0
B89: BELSŐ NYÍLÁSZÁRÓK ( B-JELŰ )
B90: A MUNKANEM EGYÜTT KEZELENDŐ A KONSZIGNÁCIÓVAL !
B91: AZ EGYSÉGÁR TARTALMAZZA AZ ELHELYEZÉSHEZ SZÜKSÉGES SEGÉDSZERKEZETEK ÁRÁT IS !
B92: A BELSŐ AJTÓK CSAK A MEGRENDELŐNEK ÉS A TERVEZŐNEK BEMUTATOTT MINTA ALAPJÁN ÉPÍTHETŐK BE !
B93: 1 | C93: Beltéri ajtók elhelyezése, konszignáció szerinti kialakatásban, vasalattal és felszereltséggel. Tok : Utólag elhelyezhető tüzihorganyzott acél tok gyári alap felületkezelés, helyszíni fedőmázolás belsőépítészet szerinti színben. Szárny: HPL bevonatos ajtólap, furatolt faforgács vagy tömör faforgács betétes, gyári porszórt felületkezelés. A jelzett helyeken az ajtólap alatt 1 cm rés a szellőzésnek. Kilincs, zár és vasalat típus, konszignáció szerint. Hoppe Paris 138 L vagy vele azonos minőségű rozsdamentes acél kilincs, rozettás, henger- vagy biztonsági zárral.
B94: 1.1 | C94: Tömör belsőajtó. Alagsori vízesblokk.
C95: Fő jellemzők : tok RAL 7035 színű átfogó acéltok, ajtólap furatolt forgács betétes, törtfehér színű HPL bevonattal, alul szellőzőréssel.
C96: Nyitása: egyszárnyú nyíló
C97: Névleges mérete: 75 / 212,5 cm
C98: Konszignációs jele: B-101
C99: Készül: | D99: 1 | E99: db | H99: =D99*F99 -> 0 | I99: =D99*G99 -> 0
B100: 1.2 | C100: Tömör belsőajtó. Raktár, személyzeti tartozkodó, szerver.
C101: Fő jellemzők : tok RAL 7035 színű acél saroktok, ajtólap tömör faforgácsbetétes, törtfehér színű HPL bevonattal, Dorma sines kitámasztható ajtócsukó.
C102: Nyitása: egyszárnyú nyíló
C103: Névleges mérete: 100 / 212,5 cm
C104: Konszignációs jele: B-301
C105: Készül: | D105: 4 | E105: db | H105: =D105*F105 -> 0 | I105: =D105*G105 -> 0
B106: 1.3 | C106: Tömör belsőajtó. Folyosói vízesblokkok.
C107: Fő jellemzők : tok RAL 7035 színű acél saroktok, ajtólap furatolt faforgácslap betétes, törtfehér színű HPL bevonattal, a közlekedő felé dekorációs betéttel, Dorma sines kitámasztható ajtócsukó.
C108: Nyitása: egyszárnyú nyíló
C109: Névleges mérete: 100 / 212,5 cm
C110: Konszignációs jele: B-302
C111: Készül: | D111: 7 | E111: db | H111: =D111*F111 -> 0 | I111: =D111*G111 -> 0
B112: 1.4 | C112: Tömör belsőajtó. Tantermek.
C113: Fő jellemzők : tok RAL 7035 színű acél saroktok, ajtólap tömör faforgácslap betétes, törtfehér színű HPL bevonattal, a közlekedő felé dekorációs betéttel, süllyesztett automata küszöbbel, 32 dB hanggátlással.
C114: Nyitása: egyszárnyú nyíló
C115: Névleges mérete: 100 / 212,5 cm
C116: Konszignációs jele: B-303
C117: Készül: | D117: 10 | E117: db | H117: =D117*F117 -> 0 | I117: =D117*G117 -> 0
B118: 1.5 | C118: Tömör belsőajtó. Öltöző, mosdó.
C119: Fő jellemzők : tok RAL 7035 színű átfogó acéltok, ajtólap furatolt faforgácslap betétes, törtfehér színű HPL bevonattal, alul szellőzőréssel.
C120: Nyitása: egyszárnyú nyíló
C121: Névleges mérete: 100 / 212,5 cm
C122: Konszignációs jele: B-304
C123: Készül: | D123: 1 | E123: db | H123: =D123*F123 -> 0 | I123: =D123*G123 -> 0
B124: 1.6 | C124: Tömör belsőajtó. Általános ajtó.
C125: Fő jellemzők : tok RAL 7035 színű átfogó acéltok, ajtólap furatolt faforgácslap betétes, törtfehér színű HPL bevonattal.
C126: Nyitása: egyszárnyú nyíló
C127: Névleges mérete: 100 / 212,5 cm
C128: Konszignációs jele: B-305
C129: Készül: | D129: 4 | E129: db | H129: =D129*F129 -> 0 | I129: =D129*G129 -> 0
B130: 1.7 | C130: Tömör belsőajtó. Folyosói vízesblokkok.
C131: Fő jellemzők : tok RAL 7035 színű átfogó acéltok, ajtólap furatolt faforgácslap betétes, törtfehér színű HPL bevonattal, a közlekedő felé dekorációs betéttel, Dorma sines kitámasztható ajtócsukó.
C132: Nyitása: egyszárnyú nyíló
C133: Névleges mérete: 100 / 212,5 cm
C134: Konszignációs jele: B-306
C135: Készül: | D135: 6 | E135: db | H135: =D135*F135 -> 0 | I135: =D135*G135 -> 0
B136: 1.8 | C136: Tömör belsőajtó. Általános ajtó.
C137: Fő jellemzők : tok RAL 7035 színű átfogó acéltok, ajtólap furatolt faforgácslap betétes, törtfehér színű HPL bevonattal, alul szellőzőréssel.
C138: Nyitása: egyszárnyú nyíló
C139: Névleges mérete: 100 / 212,5 cm
C140: Konszignációs jele: B-307
C141: Készül: | D141: 6 | E141: db | H141: =D141*F141 -> 0 | I141: =D141*G141 -> 0
B142: 1.9 | C142: Tömör belsőajtó. Alagsori általános ajtó.
C143: Fő jellemzők : tok RAL 7035 színű átfogó acéltok, ajtólap furatolt faforgácslap betétes, törtfehér színű HPL bevonattal.
C144: Nyitása: egyszárnyú nyíló
C145: Névleges mérete: 100 / 212,5 cm
C146: Konszignációs jele: B-310
C147: Készül: | D147: 1 | E147: db | H147: =D147*F147 -> 0 | I147: =D147*G147 -> 0
B148: 1.10 | C148: Tömör belsőajtó. Szertár, tanári.
C149: Fő jellemzők : tok RAL 7035 színű acél saroktok, ajtólap furatolt faforgács betétes, törtfehér színű HPL bevonattal, max. 2 cm magas küszöbbel.
C150: Nyitása: egyszárnyú nyíló
C151: Névleges mérete: 100 / 212,5 cm
C152: Konszignációs jele: B-311
C153: Készül: | D153: 5 | E153: db | H153: =D153*F153 -> 0 | I153: =D153*G153 -> 0
B154: 1.11 | C154: Tömör belsőajtó. 1.-2. emeleti tantermek.
C155: Fő jellemzők : tok RAL 7035 színű átfogó acéltok, ajtólap tömör faforgács betétes, törtfehér színű HPL bevonattal, a közlekedő felé dekorációs betéttel, süllyesztett automata küszöbbel, 32 dB hanggátlással.
C156: Nyitása: egyszárnyú nyíló
C157: Névleges mérete: 100 / 212,5 cm
C158: Konszignációs jele: B-318
C159: Készül: | D159: 5 | E159: db | H159: =D159*F159 -> 0 | I159: =D159*G159 -> 0
B160: 1.12 | C160: Tömör belsőajtó. 1. emelet tanterem.
C161: Fő jellemzők : tok RAL 7035 színű acél saroktok, ajtólap tömör faforgács betétes, törtfehér színű HPL bevonattal, a közlekedő felé dekorációs betéttel, süllyeszett automata küszöbbel, 32 dB hanggátlással.
C162: Nyitása: kétszárnyú, asszimetrikusan nyíló
C163: Névleges mérete: 160 / 212,5 cm
C164: Konszignációs jele: B-405
C165: Készül: | D165: 1 | E165: db | H165: =D165*F165 -> 0 | I165: =D165*G165 -> 0
B166: 2 | C166: Beltéri üvegajtók elhelyezése, konszignáció szerinti kialakatásban, vasalattal és felszereltséggel. Tok : Alumínium tokszerkezete DEKO FG34 vagy vele műszakilag egyenértékű, gyári porszórt RAL 7035 világosszürke színben. Szárny: keretnélküli 10 mm-es ESG üveg. Kilincs, zár és vasalat típus, konszignáció szerint illetve típus szerint.
B167: 2.1 | C167: Üvegfal ajtóval. Tanári.
C168: Fő jellemzők : 90 / 240 cm-es fix oldalelem, 90 / 240 cm-es ajtóval
C169: Nyitása: ( ajtó ) egyszárnyú nyíló
C170: Névleges mérete: 180 ( 90 + 90 ) / 240 cm
C171: Konszignációs jele: B-501
C172: Készül: | D172: 1 | E172: db | H172: =D172*F172 -> 0 | I172: =D172*G172 -> 0
B173: 2.2 | C173: Üvegfal ajtóval. Tanári.
C174: Fő jellemzők : 90 / 240 cm-es fix oldalelem, 90 / 240 cm-es ajtóval
C175: Nyitása: ( ajtó ) egyszárnyú nyíló
C176: Névleges mérete: 180 ( 90 + 90 ) / 240 cm
C177: Konszignációs jele: B-502
C178: Készül: | D178: 4 | E178: db | H178: =D178*F178 -> 0 | I178: =D178*G178 -> 0
B179: 2.3 | C179: Üvegfal ajtóval. Tanári.
C180: Fő jellemzők : 55 / 240 cm-es fix oldalelem, 90 / 240 cm-es ajtóval
C181: Nyitása: ( ajtó ) egyszárnyú nyíló
C182: Névleges mérete: 145 ( 55 + 90 ) / 240 cm
C183: Konszignációs jele: B-503
C184: Készül: | D184: 1 | E184: db | H184: =D184*F184 -> 0 | I184: =D184*G184 -> 0
B185: 2.4 | C185: Üvegfal ajtóval. Tanári.
C186: Fő jellemzők : 2x145 / 240 cm-es fix oldalelem, középen 110 / 240 cm-es ajtóval
C187: Nyitása: ( ajtó ) egyszárnyú nyíló
C188: Névleges mérete: 400 ( 145 + 110 + 145 ) / 240 cm
C189: Konszignációs jele: B-504
C190: Készül: | D190: 1 | E190: db | H190: =D190*F190 -> 0 | I190: =D190*G190 -> 0
C191: MUNKANEM összesen : | H191: =SUM(H99:H190) -> 0 | I191: =SUM(I99:I190) -> 0
B194: FELÜLETKÉPZÉS
B195: A MUNKANEM EGYÜTT KEZELENDŐ A SPECIFIKÁCIÓVAL ÉS AZ IDEVONATKOZÓ TERVEKKEL !
B196: AZ ASZTALOS ÉS A LAKATOS MUNKÁK FELÜLETKÉZÉSE AZ ADOTT MUNKANEMNNÉL SZEREPEL !
B197: 1 | C197: Belső festéseknél felület előkészítése, részmunkák; glettelés, műanyag kötőanyagú glettel (simítótapasszal), vakolt vagy gipszkarton felületen | D197: =D198+D199 -> 6,679.58 | E197: m2 | H197: =ROUND(D197*F197, 0) -> 0 | I197: =ROUND(D197*G197, 0) -> 0
B198: 2 | C198: Diszperziós festés műanyag bázisú vizes-diszperziós festékke, három rétegben, sima felületen. ( 10a ). Ajánlott típusa : STOcolor In vagy vele azonos minőségű belsőtéri falfesték, törtfehér színben. | D198: 4567.03 | E198: m2 | H198: 0 | I198: 0
B199: 3 | C199: Mosható falfestés glettelt felületen, három rétegben, sima felületen. ( 10b ). Ajánlott típusa : STOcolor Opticryl Satinmatt vagy vele azonos minőségű belsőtéri falfesték, törtfehér fehér színben. | D199: =63.73+750.99+1008.84+288.99 -> 2112.55 | E199: m2 | H199: =ROUND(D199*F199, 0) -> 0 | I199: =ROUND(D199*G199, 0) -> 0
B200: 4 | C200: Egyedi lépcsőt szinbolizáló vonalas festett grafika szintenként | D200: 4 | E200: klt | H200: =ROUND(D200*F200, 0) -> 0 | I200: =ROUND(D200*G200, 0) -> 0
C201: MUNKANEM összesen : | H201: =SUM(H197:H199) -> 0 | I201: =SUM(I197:I199) -> 0
B204: LAKATOS SZERKEZETEK ( BL JELŰ )
B205: A MUNKANEM EGYÜTT KEZELENDŐ A KONSZIGNÁCIÓVAL !
B206: AZ EGYSÉGÁR TARTALMAZZA AZ ELHELYEZÉSHEZ SZÜKSÉGES SEGÉDSZERKEZETEK, KÖTŐELEMEK, A TAKARÁS, TÖMÍTÉS ÁRÁT IS !
B207: A LAKATOS SZERKEZETEK EGYSÉGÁRÁBA BELEÉRTENDŐ A VÉGLEGES FELÜLETKEZELÉS IS !
B208: 1 | C208: Egyedi kivitelű lépcsőkorlát legyártása és elhelyezése ( ferde szakasz )
C209: Kialakítása : konszignáció szerint. Fő anyag jellemzők : átmérő 50 mm-es és átmétő 20 mm-es szálcsiszolt rozsdamentes acél, átmérő 50 mm-es lakkozott keményfa fogódzóval, sarkokban 5 cm-es sugarú ívvel.
C210: Konszignációs jele : BL-01a
C211: Készül : | D211: 42.47 | E211: fm | H211: =ROUND(D211*F211, 0) -> 0 | I211: =ROUND(D211*G211, 0) -> 0
B212: 2 | C212: Egyedi kivitelű lépcsőkorlát legyártása és elhelyezése ( egyenes szakasz )
C213: Kialakítása : konszignáció szerint. Fő anyag jellemzők : átmérő 50 mm-es és átmétő 20 mm-es szálcsiszolt rozsdamentes acél, átmérő 50 mm-es lakkozott keményfa fogódzóval, sarkokban 5 cm-es sugarú ívvel.
... 229 more rows

Sheet I.B ütem ELŐLAP
C28: TÉTELES TERVEZŐI KÖLTSÉGVETÉS
C29: KÉSZÜLT A 2112 VERESEGYHÁZ, FŐ ÚT 117-125 HRSZ: 58 SZÁM ALATT LÉTESÍTENDŐ
C30: VERESEGYHÁZI KATOLIKUS GIMNÁZIUM
C31: BELSŐÉPÍTÉSZETI TENDERDOKUMENTÁCIÓJÁHOZ
C32: I.B ÜTEM
C36: MEGBÍZÓ : | D36: EGYHÁZMEGYEI KATOLIKUS ISKOLÁK FŐHATÓSÁGA
D37: 2600 VÁC, MIGAZZI KRISTÓF TÉR 1.
C39: TERVEZŐ : | D39: TÉRLABOR KFT
D40: 1116 BUDAPEST, HUNYADI M. ÚT 32 2/2.
C44: KÉSZÜLT : | D44: BUDAPEST, 2017. SZEPTEMBER 15.

Sheet I.B ütem Összesítő
B5: KÖLTSÉGVETÉS MUNKANEM ÖSSZESÍTŐ
B6: ='I.A ütem ELŐLAP'!C29 -> KÉSZÜLT A 2112 VERESEGYHÁZ, FŐ ÚT 117-125 HRSZ: 58 SZÁM ALATT LÉTESÍTENDŐ
B7: ='I.A ütem ELŐLAP'!C30 -> VERESEGYHÁZI KATOLIKUS GIMNÁZIUM
B8: ='I.A ütem ELŐLAP'!C31 -> BELSŐÉPÍTÉSZETI TENDERDOKUMENTÁCIÓJÁHOZ
B9: ='I.B ütem ELŐLAP'!C32 -> I.B ÜTEM
B13: Ssz | C13: Munkanem megnevezése | D13: Anyag összege | E13: Díj összege
B14: 1 | C14: Burkolás belső térben ( falburkolatok ) | D14: ='I.B ütem kv '!H25 -> 0 | E14: ='I.B ütem kv '!I25 -> 0
B15: 2 | C15: Felületképzés ( színes falfelület ) | D15: ='I.B ütem kv '!H33 -> 0 | E15: ='I.B ütem kv '!I33 -> 0
B16: 3 | C16: Belsőépítészeti lakatos szerkezetek ( BL jelű ) | D16: ='I.B ütem kv '!H44 -> 0 | E16: ='I.B ütem kv '!I44 -> 0
B17: 4 | C17: Beépített bútorozás ( BA jelű ) | D17: ='I.B ütem kv '!H142 -> 0 | E17: ='I.B ütem kv '!I142 -> 0
B18: 5 | C18: Műkőszerkezetek ( BC jelű ) | D18: ='I.B ütem kv '!H154 -> 0 | E18: ='I.B ütem kv '!I154 -> 0
C19: Nettó anyag és díj összesen : | D19: =SUM(D14:D18) -> 0 | E19: =SUM(E14:E18) -> 0
C20: Nettó anyag + díj összesen : | D20: =D19+E19 -> 0 Ft
C21: ÁFA 27 % | D21: =D20*0.27 -> 0 Ft
C22: Bruttó anyag + díj összesen : | D22: =ROUND(SUM(D20:D21),0) -> 0 Ft

Sheet I.B ütem kv
B2: TÉTELES TERVEZŐI KÖLTSÉGVETÉS
B3: ='I.A ütem ELŐLAP'!C29 -> KÉSZÜLT A 2112 VERESEGYHÁZ, FŐ ÚT 117-125 HRSZ: 58 SZÁM ALATT LÉTESÍTENDŐ
B4: ='I.A ütem ELŐLAP'!C30 -> VERESEGYHÁZI KATOLIKUS GIMNÁZIUM
B5: ='I.A ütem ELŐLAP'!C31 -> BELSŐÉPÍTÉSZETI TENDERDOKUMENTÁCIÓJÁHOZ
B6: =' I.B ütem Összesítő '!B9:E9 -> I.B ÜTEM
B8: Ssz. | C8: Tétel szövege | D8: Menny. | E8: Egység | F8: Anyag egységár | G8: Díj egységre | H8: Anyag összesen | I8: Díj összesen
B10: BURKOLÁS BELSŐ TÉRBEN - FALBURKOLATOK
B11: EGYÜTT KEZELENDŐ A MŰSZAKI SPECIFIKÁCIÓVAL ÉS A TERVEKKEL !
B12: A BURKOLÓ ANYAGOK CSAK BEMUTATOTT MINTA ALAPJÁN ÉPÍTHETŐK BE !
B13: A MUNKANEM ÁRKÉPZÉSE TARTALMAZZA AZ ELHELYEZÉSHEZ SZÜKSÉGES SEGÉDSZERKEZETEK / ALAPOZÁS, KIEGYENLÍTÉS, RAGASZTÓK, FUGÁK / , TÖMÍTÉSEK, ÉLVÉDŐK STB. ÁRÁT IS !
B14: I. | C14: EGYEDI FA FALBURKOLATOK
B15: 1 | C15: Parafa falburkolat elhelyezése ( információs felület ). 100 mm-es forgácslap hátfalon 3 mm vtg pl :WICANDERS Malta Moonligt parafa, lakkozva, 2 mm vtg alátét parafaréteggel ( össz vtg : 5 mm ) 2. jelű. | D15: 94.52 | E15: m2 | H15: =ROUND(D15*F15, 0) -> 0 | I15: =ROUND(D15*G15, 0) -> 0
B16: 2 | C16: Laminált forgácslap falburkolat elhelyezése. 18 mm vastagságban, fehér színben, vízszintes stafnivázra szerelve, 5 mm-es látszóhézaggal sorolva, a hézagoknál élcsiszolva, az élek lakkozva, a szabadonálló élek kemányfából, lakkozva. 5. jelű. | D16: 128.61 | E16: m2 | H16: =ROUND(D16*F16, 0) -> 0 | I16: =ROUND(D16*G16, 0) -> 0
B17: 3 | C17: Rétegelt lemez falburkolat elhelyezése. 18 mm vtg. natúr fenyő rétegelt lemez, pácolva, 2 réteg matt lakkal felületkezelve. 11. jelű. | D17: 8.54 | E17: m2 | H17: =ROUND(D17*F17, 0) -> 0 | I17: =ROUND(D17*G17, 0) -> 0
B18: 4 | C18: Rétegelt lemez falburkolat elhelyezése. 18 mm vtg. csúszásmentesített nyír rétegelt lemez, hatszögletű struktúrájú csúszásmentesített fenolfilm felülettel, natúr film hátoldallal. Pl : Pannon-Falap HEXA, szürke színben. 7. jelű. | D18: 10.18 | E18: m2 | H18: =ROUND(D18*F18, 0) -> 0 | I18: =ROUND(D18*G18, 0) -> 0
B19: 5 | C19: Rétegelt lemez falburkolat elhelyezése. 18 mm vtg. csúszásmentesített nyír rétegelt lemez, kör mintázatú, csúszásmentesített fenolfilm felülettel, natúr film hátoldallal. Pl : Pannon-Falap METSA TOP, fekete színben. 8. jelű. | D19: 7.31 | E19: m2 | H19: =ROUND(D19*F19, 0) -> 0 | I19: =ROUND(D19*G19, 0) -> 0
B20: II. | C20: EGYÉB FALBURKOLATOK
B21: 6 | C21: 10 mm vtg. forgácslap hátfalon festett fekete krétatábla. Trinát Skolatex vizes bázisú, oldószer nélküli, matt vízálló táblafesték, fekete színben. 6. jelű. | D21: 51.04 | E21: m2 | H21: =ROUND(D21*F21, 0) -> 0 | I21: =ROUND(D21*G21, 0) -> 0
B22: 7 | C22: Krétatábla. ( szín kiviteli terv szerint ). Pentart Chalboard Paint táblafesték, falra felhordva. 6a. jelű. | D22: 28.27 | E22: m2 | H22: =ROUND(D22*F22, 0) -> 0 | I22: =ROUND(D22*G22, 0) -> 0
B23: 8 | C23: Krétatábla. Trinát Skolatex vizes bázisú, oldószer nélküli, matt vízálló táblafesték, fekete színben, falra felhordva. 6b. jelű. | D23: 2.43 | E23: m2 | H23: =ROUND(D23*F23, 0) -> 0 | I23: =ROUND(D23*G23, 0) -> 0
B24: 9 | C24: Egyedi posztertapéta elhelyezése. Vinyl tapéta, egyedi grafikával, latex nyyomási technológiával. 4. jelű. | D24: 33.79 | E24: m2 | H24: 0 | I24: 0
C25: MUNKANEM összesen : | H25: =SUM(H14:H24) -> 0 | I25: =SUM(I14:I24) -> 0
B28: FELÜLETKÉPZÉS
B29: A MUNKANEM EGYÜTT KEZELENDŐ A SPECIFIKÁCIÓVAL ÉS AZ IDEVONATKOZÓ TERVEKKEL !
B30: AZ ASZTALOS ÉS A LAKATOS MUNKÁK FELÜLETKÉZÉSE AZ ADOTT MUNKANEMNNÉL SZEREPEL !
B31: 1 | C31: Mosható falfestés glettelt felületen, három rétegben, sima felületen. ( 3. jelű ). Ajánlott típusa : STOcolor Opticryl Satinmatt vagy vele azonos minőségű belsőtéri falfesték, ( egyedi színterv szerint folyosón, a szín a kiviteli terv része ) | D31: 29.22 | E31: m2 | H31: =ROUND(D31*F31, 0) -> 0 | I31: =ROUND(D31*G31, 0) -> 0
B32: 2 | C32: Mosható falfestés glettelt felületen, három rétegben, sima felületen. Ajánlott típusa : STOcolor Opticryl Satinmatt vagy vele azonos minőségű belsőtéri falfesték, ( egyedi színterv szerint tantermekben, a szín a kiviteli terv része) | D32: 35.57 | E32: m2 | H32: =ROUND(D32*F32, 0) -> 0 | I32: =ROUND(D32*G32, 0) -> 0
C33: MUNKANEM összesen : | H33: =SUM(H31:H32) -> 0 | I33: =SUM(I31:I32) -> 0
B36: LAKATOS SZERKEZETEK ( BL JELŰ )
B37: A MUNKANEM EGYÜTT KEZELENDŐ A KONSZIGNÁCIÓVAL !
B38: AZ EGYSÉGÁR TARTALMAZZA AZ ELHELYEZÉSHEZ SZÜKSÉGES SEGÉDSZERKEZETEK, KÖTŐELEMEK, A TAKARÁS, TÖMÍTÉS ÁRÁT IS !
B39: A LAKATOS SZERKEZETEK EGYSÉGÁRÁBA BELEÉRTENDŐ A VÉGLEGES FELÜLETKEZELÉS IS !
B40: 1 | C40: Egyedi kivitelű pad vázszerkezet legyártása és elhelyezése ( lépcsőházban )
C41: Kialakítása : konszignáció szerint. Fő anyag jellemzők : 40.40.3 és 20.20.3-es zártszelvény hegesztett vázszerkezet, végleges felületképzéssel. A BC-01 műkő elemmel összeépítendő. Befoglaló mérete : sz=20-38 cm; m=50 cm, H=397,5 cm
C42: Konszignációs jele : BL-04
C43: Készül : | D43: 3 | E43: db | H43: =ROUND(D43*F43, 0) -> 0 | I43: =ROUND(D43*G43, 0) -> 0
C44: MUNKANEM összesen : | H44: =SUM(H40:H43) -> 0 | I44: =SUM(I40:I43) -> 0
B47: BELSŐÉPÍTÉSZETI BÚTOROZÁS ( BA JELŰ )
B48: A MUNKANEM EGYÜTT KEZELENDŐ A BELSŐÉPÍTÉSZETI TERVEKKEL !
B49: 1 | C49: Folyosói beülő. Alagsor AL.1.03 közlekedő.
C50: Kialakítása : konszignáció szerint.
C51: Főjellemzők :
C52: Szerkezeti anyag : 40.40.3 és 20.20.3 zártszelvény hegesztett vázszerkezet, felületkezelve. 18 mm vtg fenyő rétegelt lemez, látszó élekkel, R3 fózzal, 2 réteg vízbázisú matt lakkozással.
C53: Hátfal : ragasztott csúszásmentes nyír rétegelt lemez, PANNON falap-lemez HEXA szürke
C54: Ülőfelület : KOSKIDECOR TRANSPARENT 18 mm vastag melamin fólia bevonatú rétegelt lemez.( 1,59 m2 )
C55: Megjegyzés : a rétegelt lemez felületen cca. 0,5 m2 egyedi gravirozású felülettel.
C56: Kiegészítők : Kiegészítők : a bútor alá tolható acélvázas, rétegelt lemez borítású ülőke, 40 / 33 / 39 cm-es befoglaló mérettel ( 8 db )
C57: Mérete : Maximális hossz = 457 cm , maximális magassága : 198 cm, szélessége : 35 cm. ( Ferde síkú )
C58: Konszignációs jele : BA-01
C59: Készül : | D59: 1 | E59: db | H59: =ROUND(D59*F59, 0) -> 0 | I59: =ROUND(D59*G59, 0) -> 0
B60: 2 | C60: Erősített ablakpárkány, folyosói beülő. Alagsor AL.1.03 közlekedő.
C61: Kialakítása : konszignáció szerint. Főjellemzők :
C62: Ülőfelület szerkezeti anyaga : KOSKIDECOR TRANSPARENT 18 mm vastag melamin fólia bevonatú rétegelt lemez. ( 0,90 m2 ).
C63: Frontlap szerkezeti anyaga : Laminált faforgácslap 18 mm vastag, fehér színben. ( 0,75 m2 ). A frontlap a falburkolattal együtt készül.
C64: Mérete : Hossz = 300 cm, magassága : 25 cm, ülőfelület szélessége : 30 cm.
C65: Konszignációs jele : BA-02
C66: Készül : | D66: 2 | E66: db | H66: =ROUND(D66*F66, 0) -> 0 | I66: =ROUND(D66*G66, 0) -> 0
B67: 3 | C67: Tantermi szekrény.
C68: Kialakítása : konszignáció szerint. Főjellemzők :
C69: Szerkezeti anyag : 18 mm-es KOSKIDEKOR ECO TRANSPARENT dekoratív rétegelt lemez áttetsző melamin bevonattal. Nyitott polchátfal kiviteli tervben meghatározott színben, frontok és oldallapok fehér színben. Belső korpusz fehér laminált bútorlap, ABS élzárással.
C70: Kiegészítők : üveg tolóajtó Kamex Vetrine 15 tolóajtó vasalattal, 4 db bútorzárral, foganytyúk : 30 mm-es átmérőjű kör lyuk a bútorlapba marva.
C71: Mérete : Hossz = 700 cm, magassága : 213 cm, szélessége : 40 cm.
C72: Konszignációs jele : BA-08
C73: Készül : | D73: 1 | E73: db | H73: =ROUND(D73*F73, 0) -> 0 | I73: =ROUND(D73*G73, 0) -> 0
B74: 4 | C74: Tantermi szekrény.
C75: Kialakítása : konszignáció szerint. Főjellemzők :
C76: Szerkezeti anyag : 18 mm-es KOSKIDEKOR ECO TRANSPARENT dekoratív rétegelt lemez áttetsző melamin bevonattal. Nyitott polchátfal kiviteli tervben meghatározott színben, frontok és oldallapok fehér színben. Belső korpusz fehér laminált bútorlap, ABS élzárással.
C77: Kiegészítők : 4 db bútorzárral, foganytyúk : 30 mm-es átmérőjű kör lyuk a bútorlapba marva.
C78: Mérete : Hossz = 250 cm, magassága : 300 cm, szélessége : 30 cm.
C79: Konszignációs jele : BA-12
C80: Készül : | D80: 12 | E80: db | H80: =ROUND(D80*F80, 0) -> 0 | I80: =ROUND(D80*G80, 0) -> 0
B81: 5 | C81: Folyosói beülő. Földszint 1.02, 1. emelet 1.103 közlekedő.
C82: Kialakítása : konszignáció szerint. Főjellemzők :
C83: Szerkezeti anyag : 40.40.3 és 20.20.3 zártszelvény hegesztett vázszerkezet, felületkezelve. 18 mm vtg fenyő rétegelt lemez, látszó élekkel, R3 fózzal, 2 réteg vízbázisú matt lakkozással.
C84: Hátfal : festett falfelület linólieum burkolattal.
C85: Ülőfelület : KOSKIDECOR TRANSPARENT 18 mm vastag melamin fólia bevonatú rétegelt lemez.( 2,20 m2 )
C86: Megjegyzés : a rétegelt lemez felületen cca. 0,5 m2 egyedi gravirozású felülettel.
C87: Kiegészítők : a bútor alá tolható acélvázas, rétegelt lemez borítású ülőke, 40 / 40 / 39 cm-es befoglaló mérettel ( 8 db )
C88: Mérete : Maximális hossz = 415 cm , maximális magassága : 196 cm, szélessége : 53 cm. ( Ferde síkú )
C89: Konszignációs jele : BA-13
C90: Készül : | D90: 2 | E90: db | H90: =ROUND(D90*F90, 0) -> 0 | I90: =ROUND(D90*G90, 0) -> 0
B91: 6 | C91: Folyosói öltözőszekrény.
C92: Kialakítása : konszignáció szerint. Főjellemzők :
C93: Szerkezeti anyag : 18 mm-es nyír rétegelt rétegelt lemez, PANNONFORM fehér malamin bevonattal, az ajtókon gravírozott számokkal.
C94: Kiegészítők : 4 db bútorzárral, szekrényenként 2-2 db fogas-akasztórúddal.
C95: Mérete : Hossz = 67 cm, magassága : 180 cm, szélessége : 50 cm.
C96: Konszignációs jele : BA-14
C97: Készül : | D97: 9 | E97: db | H97: =ROUND(D97*F97, 0) -> 0 | I97: =ROUND(D97*G97, 0) -> 0
B98: 7 | C98: Folyosói öltözőszekrény.
C99: Kialakítása : konszignáció szerint. Főjellemzők :
C100: Szerkezeti anyag : 18 mm-es nyír rétegelt rétegelt lemez, PANNONFORM fehér malamin bevonattal, az ajtókon gravírozott számokkal.
C101: Kiegészítők : 6 db bútorzárral, szekrényenként 2-2 db fogas-akasztórúddal.
C102: Mérete : Hossz = 98,5 cm, magassága : 180 cm, szélessége : 50 cm.
C103: Konszignációs jele : BA-15
C104: Készül : | D104: 30 | E104: db | H104: =ROUND(D104*F104, 0) -> 0 | I104: =ROUND(D104*G104, 0) -> 0
B105: 8 | C105: Tantermi szekrény kézmosóval.
C106: Kialakítása : konszignáció szerint. Főjellemzők :
C107: Szerkezeti anyag : 18 mm-es KOSKIDEKOR ECO TRANSPARENT dekoratív rétegelt lemez áttetsző melamin bevonattal. Nyitott polchátfal kiviteli tervben meghatározott színben, frontok és oldallapok fehér színben. Belső korpusz fehér laminált bútorlap, ABS élzárással.
C108: Kiegészítők : bútorzárral, foganytyúk : 30 mm-es átmérőjű kör lyuk a bútorlapba marva.
C109: Kapcsoló kiegészítők : MARMY Serena 60x35 cm-es mosdókagyló ( gépészeti kv szerint ), mosdó alatt szemétbedovóval és szemetessel.
C110: Mérete : Hossz = 80 cm, magassága : 300 cm, szélessége : 30 cm.
C111: Konszignációs jele : BA-42
C112: Készül : | D112: 6 | E112: db | H112: =ROUND(D112*F112, 0) -> 0 | I112: =ROUND(D112*G112, 0) -> 0
B113: 9 | C113: Folyosói beülő. 1. emelet 1.02, 2. emelet 1.02.
C114: Kialakítása : konszignáció szerint.
C115: Főjellemzők :
C116: Szerkezeti anyag : 40.40.3 és 20.20.3 zártszelvény hegesztett vázszerkezet, felületkezelve. 18 mm vtg fenyő rétegelt lemez, látszó élekkel, R3 fózzal, 2 réteg vízbázisú matt lakkozással.
C117: Hátfal : 15 mm-es ragasztott rétegelt lemez.
C118: Ülőfelület : KOSKIDECOR TRANSPARENT 18 mm vastag melamin fólia bevonatú rétegelt lemez.( 1,59 m2 )
C119: Megjegyzés : a rétegelt lemez felületen cca. 0,5 m2 egyedi gravirozású felülettel.
C120: Mérete : Maximális hossz = 271 cm , maximális magassága : 240 cm, szélessége : 35 cm. ( Ferde síkú )
C121: Konszignációs jele : BA-44
C122: Készül : | D122: 2 | E122: db | H122: =ROUND(D122*F122, 0) -> 0 | I122: =ROUND(D122*G122, 0) -> 0
B123: 10 | C123: Folyosói beülő
C124: Kialakítása : konszignáció szerint. Főjellemzők :
C125: Szerkezeti anyag : 40.40.3 és 20.20.3 zártszelvény hegesztett vázszerkezet, felületkezelve. 18 mm vtg fenyő rétegelt lemez, látszó élekkel, R3 fózzal, 2 réteg vízbázisú matt lakkozással.
C126: Hátfal : festett falfelület linólieum burkolattal.
C127: Ülőfelület : KOSKIDECOR TRANSPARENT 18 mm vastag melamin fólia bevonatú rétegelt lemez.( 1 m2 )
C128: Megjegyzés : a rétegelt lemez felületen cca. 0,5 m2 egyedi gravirozású felülettel.
C129: Kiegészítők : a bútor alá tolható acélvázas, rétegelt lemez borítású ülőke, 40/ 33 / 39 cm-es befoglaló mérettel ( 5 db )
C130: Mérete : hossz = 288 cm , magassága : 203 cm, szélessége : 35 cm.
C131: Konszignációs jele : BA-48
C132: Készül : | D132: 1 | E132: db | H132: =ROUND(D132*F132, 0) -> 0 | I132: =ROUND(D132*G132, 0) -> 0
B133: 11 | C133: Folyosói beülő. 2. emelet 1.03.
C134: Kialakítása : konszignáció szerint. Főjellemzők :
C135: Szerkezeti anyag : 40.40.3 és 20.20.3 zártszelvény hegesztett vázszerkezet, felületkezelve. 18 mm vtg fenyő rétegelt lemez, látszó élekkel, R3 fózzal, 2 réteg vízbázisú matt lakkozással.
C136: Hátfal : festett falfelület linólieum burkolattal.
C137: Ülőfelület : KOSKIDECOR TRANSPARENT 18 mm vastag melamin fólia bevonatú rétegelt lemez.
C138: Megjegyzés : a rétegelt lemez felületen cca. 0,5 m2 egyedi gravirozású felülettel.
C139: Mérete : hossz = 415 cm , magassága : 196 cm, szélessége :35 cm
C140: Konszignációs jele : BA-51
C141: Készül : | D141: 1 | E141: db | H141: =ROUND(D141*F141, 0) -> 0 | I141: =ROUND(D141*G141, 0) -> 0
C142: MUNKANEM összesen : | H142: =SUM(H59:H141) -> 0 | I142: =SUM(I59:I141) -> 0
B145: MŰKŐ SZERKEZETEK ( BC JELŰ )
B146: A MUNKANEM EGYÜTT KEZELENDŐ A BELSŐÉPÍTÉSZETI TERVEKKEL !
B147: 1 | C147: Egyedi műkőpad legyártása és elhelyezése
C148: Kialakítása : konszignáció szerint. Főjellemzők :
C149: Szerkezeti anyagok : 2 cm vastag forgácslap háttérszerkezet, 2 cm vastag műkólap, 5 mm-es lekerekített éllel, a műkőlapből kimart szellőző nyílásokkal.
C150: Megjegyzés : A BL-04 lakatos szerkezettel összeépítendő.
C151: Mérete : hossz : 398 cm, szélesség : 50 + 8 cm.
C152: Konszignációs jele : BC-01
C153: Készül : | D153: 3 | E153: db | H153: =ROUND(D153*F153, 0) -> 0 | I153: =ROUND(D153*G153, 0) -> 0
C154: MUNKANEM összesen : | H154: =SUM(H153:H153) -> 0 | I154: =SUM(I153:I153) -> 0

Sheet II. ütem ELŐLAP
C28: TÉTELES TERVEZŐI KÖLTSÉGVETÉS
C29: KÉSZÜLT A 2112 VERESEGYHÁZ, FŐ ÚT 117-125 HRSZ: 58 SZÁM ALATT LÉTESÍTENDŐ
C30: VERESEGYHÁZI KATOLIKUS GIMNÁZIUM
C31: BELSŐÉPÍTÉSZETI TENDERDOKUMENTÁCIÓJÁHOZ
C32: II. ÜTEM
C36: MEGBÍZÓ : | D36: EGYHÁZMEGYEI KATOLIKUS ISKOLÁK FŐHATÓSÁGA
D37: 2600 VÁC, MIGAZZI KRISTÓF TÉR 1.
C39: TERVEZŐ : | D39: TÉRLABOR KFT
D40: 1116 BUDAPEST, HUNYADI M. ÚT 32 2/2.
C44: KÉSZÜLT : | D44: BUDAPEST, 2017. SZEPTEMBER 15.

Sheet II. ütem Összesítő
B5: KÖLTSÉGVETÉS MUNKANEM ÖSSZESÍTŐ
B6: ='I.A ütem ELŐLAP'!C29 -> KÉSZÜLT A 2112 VERESEGYHÁZ, FŐ ÚT 117-125 HRSZ: 58 SZÁM ALATT LÉTESÍTENDŐ
B7: ='I.A ütem ELŐLAP'!C30 -> VERESEGYHÁZI KATOLIKUS GIMNÁZIUM
B8: ='I.A ütem ELŐLAP'!C31 -> BELSŐÉPÍTÉSZETI TENDERDOKUMENTÁCIÓJÁHOZ
B9: ='II. ütem ELŐLAP '!C32 -> II. ÜTEM
B13: Ssz | C13: Munkanem megnevezése | D13: Anyag összege | E13: Díj összege
B14: 1 | C14: Belsőépítészeti falazások | D14: ='II. ütem kv'!H13 -> 0 | E14: ='II. ütem kv'!I13 -> 0
B15: 2 | C15: Belsőépítészeti szárazépítés | D15: ='II. ütem kv'!H23 -> 0 | E15: ='II. ütem kv'!I23 -> 0
B16: 3 | C16: Burkolás belső térben | D16: ='II. ütem kv'!H125 -> 0 | E16: ='II. ütem kv'!I125 -> 0
B17: 4 | C17: Belsőépítészeti belső nyílászárók ( B jelű ) | D17: ='II. ütem kv'!H304 -> 0 | E17: ='II. ütem kv'!I304 -> 0
B18: 5 | C18: Felületképzés | D18: ='II. ütem kv'!H316 -> 0 | E18: ='II. ütem kv'!I316 -> 0
B19: 7 | C19: Belsőépítészeti lakatos szerkezetek ( BL jelű ) | D19: ='II. ütem kv'!H339 -> 0 | E19: ='II. ütem kv'!I339 -> 0
B20: 6 | C20: Beépített bútorozás ( BA jelű ) | D20: ='II. ütem kv'!H641 -> 0 | E20: ='II. ütem kv'!I641 -> 0
B21: 8 | C21: Vízesblokk paravánfalak ( BF jelű ) | D21: ='II. ütem kv'!H677 -> 0 | E21: ='II. ütem kv'!I677 -> 0
B22: 9 | C22: Mosdópultok ( BP jelű ) | D22: ='II. ütem kv'!H707 -> 0 | E22: ='II. ütem kv'!I707 -> 0
B23: 10 | C23: Műkőszerkezetek ( BC jelű ) | D23: ='II. ütem kv'!H719 -> 0 | E23: ='II. ütem kv'!I719 -> 0
C24: Nettó anyag és díj összesen : | D24: =SUM(D14:D23) -> 0 | E24: =SUM(E14:E23) -> 0
C25: Nettó anyag + díj összesen : | D25: =D24+E24 -> 0 Ft
C26: ÁFA 27 % | D26: =D25*0.27 -> 0 Ft
C27: Bruttó anyag + díj összesen : | D27: =ROUND(SUM(D25:D26),0) -> 0 Ft

Sheet II. ütem kv
B2: TÉTELES TERVEZŐI KÖLTSÉGVETÉS
B3: ='I.A ütem ELŐLAP'!C29 -> KÉSZÜLT A 2112 VERESEGYHÁZ, FŐ ÚT 117-125 HRSZ: 58 SZÁM ALATT LÉTESÍTENDŐ
B4: ='I.A ütem ELŐLAP'!C30 -> VERESEGYHÁZI KATOLIKUS GIMNÁZIUM
B5: ='I.A ütem ELŐLAP'!C31 -> BELSŐÉPÍTÉSZETI TENDERDOKUMENTÁCIÓJÁHOZ
B6: ='II. ütem ELŐLAP '!C32 -> II. ÜTEM
B8: Ssz. | C8: Tétel szövege | D8: Menny. | E8: Egység | F8: Anyag egységár | G8: Díj egységre | H8: Anyag összesen | I8: Díj összesen
B10: BELSŐÉPÍTÉSZETI FALAZÁS
B11: 1 | C11: Lábazati fal készítése 1 sor YTONG válaszfaltéglából, 10 cm vastagságban, 15 cm magassággal, öltözőszekrények alatt. | D11: 37.95 | E11: fm | H11: =ROUND(D11*F11, 0) -> 0 | I11: =ROUND(D11*G11, 0) -> 0
B12: 2 | C12: Előtétfalak készítése YTONG válaszfaltéglából, 5 cm vastagságban, egyes folyosói szakaszokon. | D12: 53.13 | E12: m2 | H12: 0 | I12: 0
C13: MUNKANEM összesen : | H13: =SUM(H11:H12) -> 0 | I13: =SUM(I11:I12) -> 0
B16: BELSŐÉPÍTÉSZETI SZÁRAZÉPÍTÉS
B17: 1 | C17: Gipszkarton előtétfalak készítése vízesblokkban, falba épített WC tartályoknál, CW vázszerkezetre szerelt 2 réteg 12,5 mm-es impregnált gipszkarton lemez. | D17: =(0.8+3.28+1.7)*1.2*4 -> 27.744 | E17: m2 | H17: =ROUND(D17*F17, 0) -> 0 | I17: =ROUND(D17*G17, 0) -> 0
B18: 2 | C18: Gipszkarton elburkolások készítése, CW vagy fa vázszerkezetre szerelt 1 réteg normál gipszkarton lemez, a jelzett helyeken a bútorok körül. | D18: 76.45 | E18: m2 | H18: 0 | I18: 0
B19: 3 | C19: Gipszkartin szoknyafal készítése étteremben, fém tartóváz szerkezeten 1x1 réteg normál 12,5 mm-es gipszkarton lap burkolattal | D19: 2.47 | E19: m2 | H19: =ROUND(D19*F19, 0) -> 0 | I19: =ROUND(D19*G19, 0) -> 0
C20: ÁLMENNYEZETEK ÉPÍTÉSZETI TERVEK SZERINT
B21: 4 | C21: Szerelt gipszkarton álmennyezet fém vázszerkezetre, választható ( rugós ) függesztéssel, csavarfejek és illesztések alapglettelve (Q2 minőségben), 1 rtg. 12,5 mm vtg. gipszkarton borítással, a szükséges helyeken revíziós nyílásokkal, valamint a gépészeti berendezések és a lámpahelyek kivágásával.
B22: 5 | C22: Akusztikus, szerelt gipszkarton álmennyezet készítése, fém vázszerkezetre, csavarfejek és illesztések glettelve (Q2 minőségben), Típusa : Rigitone Actív Air 15/30. Étteremben.
C23: MUNKANEM összesen : | H23: =SUM(H17:H22) -> 0 | I23: =SUM(I17:I22) -> 0
B26: BURKOLÁS BELSŐ TÉRBEN
B27: EGYÜTT KEZELENDŐ A MŰSZAKI SPECIFIKÁCIÓVAL ÉS A TERVEKKEL !
B28: A BURKOLÓ ANYAGOK CSAK BEMUTATOTT MINTA ALAPJÁN ÉPÍTHETŐK BE !
B29: A MUNKANEM ÁRKÉPZÉSE TARTALMAZZA AZ ELHELYEZÉSHEZ SZÜKSÉGES SEGÉDSZERKEZETEK / ALAPOZÁS, KIEGYENLÍTÉS, RAGASZTÓK, FUGÁK / , TÖMÍTÉSEK, ÉLVÉDŐK STB. ÁRÁT IS !
B30: I. | C30: PADLÓBURKOLATOK
B31: 1 | C31: Öntött betonpadló burkolat készítése ( 2-es típus )
C32: Ajánlott típusa ( vagy vele műszakilag egyenérkékű ): DUROSTONE DUROFLOW nagy teherbírású, önterrülő padlóhabarcs, 1 cm összvastagságban, amely áll :
C33: aljzatelőkészítés: Duroprimer 2 rétegben
C34: padlóhabarcs: Doroflow 6-10 mm vastagságban
C35: felületvédelem: Durocuring ideiglenes párazárás
C36: felületképzés: Harmony Vernis Prémium 2K rugalmas, kopásálló lakk
C37: Készül : ( aula, folyosók, étterem, lépcsőelőtér ) | D37: 1329.14 | E37: m2 | H37: =ROUND(D37*F37, 0) -> 0 | I37: =ROUND(D37*G37, 0) -> 0
B38: 2 | C38: Öntött betonpadló burkolat készítése ( 3-as típus )
C39: Ajánlott típusa ( vagy vele műszakilag egyenérkékű ): DUROSTONE HARMONY glettbeton, 1 cm összvastagságban, amely áll :
C40: önterülő aljzatkiegyenlítés szükséges, nagyobb felületnél üvegszövet hálóval az első rétegben
C41: alapozás: Harmony Prim, 1-2 rétegben
C42: padlóhabarcs: Harmony Glettbeton 2 komponensű habarcs, 2 rétegben, 2 mm vastagságban
C43: csiszolás
C44: pórustömítés: Harmony Pórustömító 1 rétegben
C45: felületképzés: Harmony Vernish Prémium 2K poliuretán lakk, 2 rétegben
C46: Készül : ( rajzterem ) | D46: 69.7 | E46: m2 | H46: =ROUND(D46*F46, 0) -> 0 | I46: =ROUND(D46*G46, 0) -> 0
B47: 3 | C47: Öntött betonpadló burkolat készítése ( 4-e típus )
C48: Ajánlott típusa ( vagy vele műszakilag egyenérkékű ): DUROSTONE DUROFLOW nagy teherbírású, önterrülő habarcs, 1 cm összvastagságban, saválló bevonattal, amely áll :
C49: aljzatelőkészítés: Duroprimer 2 rétegben
C50: padlóhabarcs: Doroflow 6-10 mm vastagságban
C51: felületvédelem: Durocuring ideiglenes párazárás
C52: felületképzés: Durosmart Floor Protect S egykomponensű hibrid silan polimer lakk, fényes hatású, csúszásmentes bevonat, sav-, olaj és lúgálló, 2 rétegben
C53: pórustömítés: Harmony Pórustömító 1 rétegben
C54: felületképzés: Harmony Vernish Prémium 2K poliuretán lakk, 2 rétegben
C55: Készül : ( kémiai labor ) | D55: 83.4 | E55: m2 | H55: =ROUND(D55*F55, 0) -> 0 | I55: =ROUND(D55*G55, 0) -> 0
B56: 4 | C56: Linóleum padlóburkolat, egyszínű, ( 1. típus)
C57: Ajánlott típusa ( vagy vele műszakilag egyenérkékű ): FORBO MARMOLEUM REAL/FRESCO/VIVACE, 2,5 mm vtg., amely áll :
C58: aljzatkiegyenlítés (pl. Forbo 044 alapozó, Forbo 975 aljzatkiegyenlítő)
C59: linóleum, felületfolytonosan hegesztve, ragasztva (Forbo 610)
C60: Javasolt színek: Fresco 3882 relaxing lagoon, Real 3238 laguna, Fresco 3828 blue heaven
C61: Készül : ( általános tantermek ) | D61: 382.4 | E61: m2 | H61: =ROUND(D61*F61, 0) -> 0 | I61: =ROUND(D61*G61, 0) -> 0
B62: 5 | C62: Linóleum padlóburkolat, egyszínű, ( 2. típus)
C63: Ajánlott típusa ( vagy vele műszakilag egyenérkékű ): FORBO MARMOLEUM STRIATO COLOUR, 2,5 mm vtg., amely áll :
C64: aljzatkiegyenlítés (pl. Forbo 044 alapozó, Forbo 975 aljzatkiegyenlítő)
C65: linóleum, felületfolytonosan hegesztve, ragasztva (Forbo 610)
C66: Javasolt színek: 5221 colour stream, 5241, sunshine yellow, 5242 red roses, 5243 peacock blue
C67: Készül : kiemelt tantermek | D67: 80.7 | E67: m2 | H67: =ROUND(D67*F67, 0) -> 0 | I67: =ROUND(D67*G67, 0) -> 0
B68: 6 | C68: Linóleum padlóburkolat, egyszínű, ( 3. típus)
C69: Ajánlott típusa ( vagy vele műszakilag egyenérkékű ): FORBO MARMOLEUM REAL/FRESCO/VIVACE, 2,5 mm vtg., amely áll :
C70: aljzatkiegyenlítés (pl. Forbo 044 alapozó, Forbo 975 aljzatkiegyenlítő)
C71: linóleum, felületfolytonosan hegesztve, ragasztva (Forbo 610)
C72: A terem padlóburkolata egyszerű, de egyedi minta alapján több szín felhasználásával készül. Javasolt színek: Fresco 3882 relaxing lagoon, Real 3238 laguna, Fresco 3828 blue heaven
C73: Készül : egyedi bútorozású tantermek | D73: 211.2 | E73: m2 | H73: =ROUND(D73*F73, 0) -> 0 | I73: =ROUND(D73*G73, 0) -> 0
B74: 7 | C74: Ragasztott parketta padlóburkolat ( 2. típus )
C75: Amely áll :
C76: aljzatkiegyenlítés
C77: rétegelt tölgy keményfa parketta, 15 mm vastag, ( rétegelt fenyő + 3-4 mm-es tögy felület, hézagolva, ragasztva, padlófűtésre alkalmas kivitelben
C78: olajozott felületképzés
C79: Készül : kápolna és előtér | D79: 137.5 | E79: m2 | H79: =ROUND(D79*F79, 0) -> 0 | I79: =ROUND(D79*G79, 0) -> 0
B80: 8 | C80: Csúszásmentes greslap padlóburkolat ragasztva, fugázva ( 1. típus )
C81: Ajánlott típusa ( vagy vele műszakilag egyenérkékű ): Zalakerámia CEMENTI ZRG 607 vagy ZGD 60607 típus, 30x60 cm méretben, matt szürke színben. Kopásállóság : min. PEI 4, csúszamentesség : min. R10.
C82: Készül : vízesblokkok | D82: 139.3 | E82: m2 | H82: =ROUND(D82*F82, 0) -> 0 | I82: =ROUND(D82*G82, 0) -> 0
B83: 9 | C83: Csúszásmentes greslap padlóburkolat ragasztva, fugázva ( 2. típus )
C84: Ajánlott típusa ( vagy vele műszakilag egyenérkékű ): Zalakerámia ARCHITECT TAURUS GRANIT TAA35076 76S típus, 30x30 cm méretben, matt szürke színben. Kopásállóság : min. PEI 4, csúszamentesség : min. R10.
C85: Készül : konyha, raktárak, alárendelt helyek | D85: 271.62 | E85: m2 | H85: =ROUND(D85*F85, 0) -> 0 | I85: =ROUND(D85*G85, 0) -> 0
B86: 10 | C86: Lépcsőburkolat készítése ( 1-es típus ) Előregyártott beton ( műkő ) lapok, terrazzo.
B87: 10 | C87: Ajánlott típusa ( vagy vele műszakilag egyenérkékű ): DUROSTONE, DUROCOLOR TERAZZO, terrazzo 2 cm-es összvastagsággal. Felületkeményítő premix, pigmentált, speciális színes szemcsékkel dúsított, szárazhabarcsból, a belépő felületének első 5 cm-es sávja eltérő színezéssel, csúszásmentesített felületképzéssel, kopásállóság: A6, szemcseméret: 0-5 mm, rétegvastagság 6-15 mm.
B88: 10.1 | C88: Készül : ( járólap ) | D88: 168 | E88: fm | H88: =ROUND(D88*F88, 0) -> 0 | I88: =ROUND(D88*G88, 0) -> 0
B89: 10.2 | C89: Készül : ( homloklap ) | D89: 192 | E89: fm | H89: 0 | I89: 0
B90: 11 | C90: Szennyfogó szőnyeg elhelyezése
B91: 11.1 | C91: Ajánlott típusa ( vagy vele műszakilag egyenérkékű ): HAGO COMBICLEAM BUSH 12, Nova fekete sörték, 01 anttracit tűfilc betéttel. | D91: 4.3 | E91: m2 | H91: =ROUND(D91*F91, 0) -> 0 | I91: =ROUND(D91*G91, 0) -> 0
B92: II. | C92: LÁBAZATOK
B93: 12 | C93: Műkő lábazat, 8 mm vastagságban, 15 cm-es magassággal, Durosstone, fehér színben.
C94: Készül : betonpadlós helyiségekben, lépcsőházakban | D94: 731.65 | E94: fm | H94: =ROUND(D94*F94, 0) -> 0 | I94: =ROUND(D94*G94, 0) -> 0
B95: 13 | C95: Rétegelt lemez lábazat, 15 mm vastagságban, 15 cm-es magassággal, r=3 mm-es fózzal, fehér páccal és 2 réteg matt vízesbázisú lakkal felületkezelve, szilikonprofilba ültetve.
C96: Készül : linóleum burkolatos helyiségekben | D96: 380.49 | E96: fm | H96: =ROUND(D96*F96, 0) -> 0 | I96: =ROUND(D96*G96, 0) -> 0
B97: 14 | C97: Rétegelt lemez lábazat, 15 mm vastagságban, 15 cm-es magassággal, r=3 mm-es fózzal, fehér páccal és 2 réteg matt vízesbázisú lakkal felületkezelve, szilikonprofil nélkül .
C98: Készül : parketta burkolatos helyiségekben | D98: 57.96 | E98: fm | H98: =ROUND(D98*F98, 0) -> 0 | I98: =ROUND(D98*G98, 0) -> 0
B99: 15 | C99: Vágott greslap lábazat, 15 cm-es magassággal, a padlóburkolat anyagával megegyező anyaggal
C100: Készül : greslap ( 2. típus ) burkolatos helyiségekben | D100: 202.27 | E100: fm | H100: =ROUND(D100*F100, 0) -> 0 | I100: =ROUND(D100*G100, 0) -> 0
B101: III. | C101: KERÁMIA FALBURKOLATOK
B102: 16 | C102: Csempe falburkolat készítése ragasztva, fugázva, a szükséges helyeken élvédőzve. Ajánlott típusa : ZALAKERÁMIA ARCHITECT CARNEVÁL ZBK 53001 vagy vele műszakilag egyenértékű, 20x50 cm-es méretben, fényes fehér színben, vízesblokkokban. | D102: 496.03 | E102: m2 | H102: =ROUND(D102*F102, 0) -> 0 | I102: =ROUND(D102*G102, 0) -> 0
B103: 17 | C103: Csempe falburkolat készítése ragasztva, fugázva, a szükséges helyeken élvédőzve. Ajánlott típusa : ZALAKERÁMIA ARCHITECT CARNEVÁL ZBR 502 vagy vele műszakilag egyenértékű, 20x20 cm-es méretben, matt fehér színben, konyhában, tantermekben, alárendelt helyeken. | D103: 452.48 | E103: m2 | H103: 0 | I103: 0
B104: 18 | C104: Csempe falburkolat készítése ragasztva, fugázva, a szükséges helyeken élvédőzve. Ajánlott típusa: TUBABZIN ALL IN WHITE hullámmintás struktúrával, 30x60 cm méretben, matt fehér színben, étteremben. 1. jelű. | D104: 4.96 | E104: m2 | H104: =ROUND(D104*F104, 0) -> 0 | I104: =ROUND(D104*G104, 0) -> 0
B105: 19 | C105: Burkolat síkjába ragasztott tükör vízesblokokban. | D105: 18.58 | E105: m2 | H105: =ROUND(D105*F105, 0) -> 0 | I105: =ROUND(D105*G105, 0) -> 0
B106: IV. | C106: EGYEDI FA FALBURKOLATOK
B107: 20 | C107: Parafa falburkolat elhelyezése ( információs felület ). 100 mm-es forgácslap hátfalon 3 mm vtg pl :WICANDERS Malta Moonligt parafa, lakkozva, 2 mm vtg alátét parafaréteggel ( össz vtg : 5 mm ) 2. jelű. | D107: =29.2+43.94 -> 73.14 | E107: m2 | H107: =ROUND(D107*F107, 0) -> 0 | I107: =ROUND(D107*G107, 0) -> 0
B108: 21 | C108: Laminált forgácslap falburkolat elhelyezése. 18 mm vastagságban, fehér színben, vízszintes stafnivázra szerelve, 5 mm-es látszóhézaggal sorolva, a hézagoknál élcsiszolva, az élek lakkozva, a szabadonálló élek kemányfából, lakkozva. 5. jelű. | D108: 101.91 | E108: m2 | H108: =ROUND(D108*F108, 0) -> 0 | I108: =ROUND(D108*G108, 0) -> 0
B109: 22 | C109: Rétegelt lemez falburkolat elhelyezése. 18 mm vtg. natúr fenyő rétegelt lemez, pácolva, 2 réteg matt lakkal felületkezelve. 11. jelű. | D109: =6.04+22.06 -> 28.1 | E109: m2 | H109: =ROUND(D109*F109, 0) -> 0 | I109: =ROUND(D109*G109, 0) -> 0
B110: 23 | C110: Akusztikus rétegelt lemez falburkolat elhelyezése. 3 tétegű táblák, körfuratolt, nyír színfurnérozott felülettel, fekete akusztikus fríz hátoldallal, fa tartóvázszerkezettel, mögötte 2 cm vtg hanglágy kőzetgyapot szigeteléssel. Pl : Pannon-Falap ATMOPHON. 13. jelű. | D110: =18.54+16.98 -> 35.52 | E110: m2 | H110: =ROUND(D110*F110, 0) -> 0 | I110: =ROUND(D110*G110, 0) -> 0
B111: V. | C111: LINÓLEUM FALBURKOLATOK
B112: 24 | C112: Linóleum falburkolat burkolat készítése ( egyszínű ) Ajánlott típusa ( vagy vele műszakilag egyenérkékű ): FORBO MARMOLEUM Real/Fresco/Vivace, 2,5 mm vtg. Javasolt színek : Fresco 3882 relaxing lagoon, Real 3238 laguna, Fresco 3828 blue heaven. 1. típus. | D112: 48.2 | E112: m2 | H112: =ROUND(D112*F112, 0) -> 0 | I112: =ROUND(D112*G112, 0) -> 0
B113: 25 | C113: Linóleum falburkolat burkolat készítése ( egyszínű ) Ajánlott típusa ( vagy vele műszakilag egyenérkékű ): Ajánlott típusa ( vagy vele műszakilag egyenérkékű ): FORBO MARMOLEUM REAL/FRESCO/VIVACE, 2,5 mm vtg. 3. típus. | D113: 21.6 | E113: m2 | H113: =ROUND(D113*F113, 0) -> 0 | I113: =ROUND(D113*G113, 0) -> 0
B114: 26 | C114: Linóleum falburkolat burkolat készítése (csíkos). Ajánlott típusa ( vagy vele műszakilag egyenérkékű ): FORBO MARMOLEUM Striato colour, 2,5 mm vtg. Javasolt színek: 5221 colour stream, 5241, sunshine yellow, 5242 red roses, 5243 peacock blue. 2. típus, 9.-es jelű. | D114: 36.94 | E114: m2 | H114: =ROUND(D114*F114, 0) -> 0 | I114: =ROUND(D114*G114, 0) -> 0
B115: VI. | C115: EGYÉB FALBURKOLATOK
B116: 27 | C116: 10 mm vtg. forgácslap hátfalon festett fekete krétatábla. Trinát Skolatex vizes bázisú, oldószer nélküli, matt vízálló táblafesték, fekete színben. 6. jelű. | D116: =21.68+20.56 -> 42.24 | E116: m2 | H116: =ROUND(D116*F116, 0) -> 0 | I116: =ROUND(D116*G116, 0) -> 0
B117: 28 | C117: Krétatábla. ( szín kiviteli terv szerint ). Pentart Chalboard Paint táblafesték, falra felhordva. 6a. jelű. | D117: 3.31 | E117: m2 | H117: =ROUND(D117*F117, 0) -> 0 | I117: =ROUND(D117*G117, 0) -> 0
B118: 29 | C118: Krétatábla. Trinát Skolatex vizes bázisú, oldószer nélküli, matt vízálló táblafesték, fekete színben, falra vagy fémlemezre felhordva. 6b. jelű. | D118: 15.37 | E118: m2 | H118: =ROUND(D118*F118, 0) -> 0 | I118: =ROUND(D118*G118, 0) -> 0
B119: 30 | C119: Egyedi posztertapéta elhelyezése. Vinyl tapéta, egyedi grafikával, latex nyyomási technológiával. 4. jelű. | D119: 8.34 | E119: m2 | H119: 0 | I119: 0
B120: VII. | C120: EGYÉB
B121: 31 | C121: Burkolatváltóprofil elhelyezése rozsdamentes kivitelben, a küszöb nélküli helyeken és a burkolat típus váltásoknál | D121: 39.6 | E121: fm | H121: =ROUND(D121*F121, 0) -> 0 | I121: =ROUND(D121*G121, 0) -> 0
B122: 32 | C122: Dilatációs profil elhelyezése rozsdamentes kivitelben. | D122: 18.6 | E122: fm | H122: 0 | I122: 0
B123: 33 | C123: Folyosói beton padlóburkolatban utólag gravírozott felíratok kialakítása ( kiviteli terv része ) | D123: 5 | E123: hely | H123: 0 | I123: 0
B124: 34 | C124: Aulában beton padlóburkolatban utólag gravírozott felíratok és minták kialakítása ( kiviteli terv része ) | D124: 1 | E124: klt | H124: 0 | I124: 0
C125: MUNKANEM összesen : | H125: =SUM(H37:H124) -> 0 | I125: =SUM(I37:I124) -> 0
B128: BELSŐ NYÍLÁSZÁRÓK ( B-JELŰ )
B129: A MUNKANEM EGYÜTT KEZELENDŐ A KONSZIGNÁCIÓVAL !
B130: AZ EGYSÉGÁR TARTALMAZZA AZ ELHELYEZÉSHEZ SZÜKSÉGES SEGÉDSZERKEZETEK ÁRÁT IS !
B131: A BELSŐ AJTÓK CSAK A MEGRENDELŐNEK ÉS A TERVEZŐNEK BEMUTATOTT MINTA ALAPJÁN ÉPÍTHETŐK BE !
B132: 1 | C132: Beltéri ajtók elhelyezése, konszignáció szerinti kialakatásban, vasalattal és felszereltséggel. Tok : Utólag elhelyezhető tüzihorganyzott acél tok gyári alap felületkezelés, helyszíni fedőmázolás belsőépítészet szerinti színben. Szárny: HPL bevonatos ajtólap, furatolt faforgács vagy tömör faforgács betétes, gyári porszórt felületkezelés. A jelzett helyeken az ajtólap alatt 1 cm rés a szellőzésnek. Kilincs, zár és vasalat típus, konszignáció szerint. Hoppe Paris 138 L vagy vele azonos minőségű rozsdamentes acél kilincs, rozettás, henger- vagy biztonsági zárral.
B133: 1.1 | C133: Tömör belsőajtó. Alagsori vízesblokk.
C134: Fő jellemzők : tok RAL 7035 színű átfogó acéltok, ajtólap furatolt forgács betétes, törtfehér színű HPL bevonattal, alul szellőzőréssel.
C135: Nyitása: egyszárnyú nyíló
C136: Névleges mérete: 75 / 212,5 cm
C137: Konszignációs jele: B-101
C138: Készül: | D138: 1 | E138: db | H138: =D138*F138 -> 0 | I138: =D138*G138 -> 0
B139: 1.2 | C139: Tömör belsőajtó. Alagsori mosléktároló.
C140: Fő jellemzők : tok RAL 7035 színű átfogó acéltok, ajtólap furatolt faforgács betétes, törtfehér színű HPL bevonattal, alul szellőzéssel.
C141: Nyitása: egyszárnyú nyíló
C142: Névleges mérete: 75 / 212,5 cm
C143: Konszignációs jele: B-102
C144: Készül: | D144: 1 | E144: db | H144: =D144*F144 -> 0 | I144: =D144*G144 -> 0
B145: 1.3 | C145: Tömör belsőajtó. Földszinti büfé.
C146: Fő jellemzők : tok RAL 7035 színű átfogó acéltok, ajtólap furatolt faforgács betétes, törtfehér színű HPL bevonattal.
C147: Nyitása: egyszárnyú nyíló
C148: Névleges mérete: 75 / 212,5 cm
C149: Konszignációs jele: B-103
C150: Készül: | D150: 1 | E150: db | H150: =D150*F150 -> 0 | I150: =D150*G150 -> 0
B151: 1.4 | C151: Tömör belsőajtó. Tantermek.
C152: Fő jellemzők : tok RAL 7035 színű acél saroktok, ajtólap tömör faforgácslap betétes, törtfehér színű HPL bevonattal, a közlekedő felé dekorációs betéttel, süllyesztett automata küszöbbel, 32 dB hanggátlással.
C153: Nyitása: egyszárnyú nyíló
C154: Névleges mérete: 100 / 212,5 cm
C155: Konszignációs jele: B-303
C156: Készül: | D156: 5 | E156: db | H156: =D156*F156 -> 0 | I156: =D156*G156 -> 0
B157: 1.5 | C157: Tömör belsőajtó. Általános ajtó.
C158: Fő jellemzők : tok RAL 7035 színű átfogó acéltok, ajtólap furatolt faforgács betétes, törtfehér színű HPL bevonattal.
C159: Nyitása: egyszárnyú nyíló
C160: Névleges mérete: 100 / 212,5 cm
C161: Konszignációs jele: B-305
C162: Készül: | D162: 4 | E162: db | H162: =D162*F162 -> 0 | I162: =D162*G162 -> 0
B163: 1.6 | C163: Tömör belsőajtó. Folyosói vízesblokkok.
C164: Fő jellemzők : tok RAL 7035 színű átfogó acéltok, ajtólap furatolt faforgács betétes, törtfehér színű HPL bevonattal, a közlekedő felé dekorációs betéttel, Dorma sines kitámasztható ajtócsukó.
C165: Nyitása: egyszárnyú nyíló
C166: Névleges mérete: 100 / 212,5 cm
C167: Konszignációs jele: B-306
C168: Készül: | D168: 8 | E168: db | H168: =D168*F168 -> 0 | I168: =D168*G168 -> 0
B169: 1.7 | C169: Tömör belsőajtó. Általános ajtó.
C170: Fő jellemzők : tok RAL 7035 színű átfogó acéltok, ajtólap furatolt faforgácslap betétes, törtfehér színű HPL bevonattal, alul szellőzőréssel.
C171: Nyitása: egyszárnyú nyíló
C172: Névleges mérete: 100 / 212,5 cm
C173: Konszignációs jele: B-307
C174: Készül: | D174: 13 | E174: db | H174: =D174*F174 -> 0 | I174: =D174*G174 -> 0
B175: 1.8 | C175: Tömör, üvegezett betétes belsőajtó. Alagsori tálaló.
C176: Fő jellemzők : tok RAL 7035 színű átfogó acéltok, ajtólap furatolt faforgács betétes, törtfehér színű HPL bevonattal, átm. 45 cm-es kör alakú, fix, biztonsági üvegezésű betéttel.
C177: Nyitása: egyszárnyú nyíló
C178: Névleges mérete: 100 / 212,5 cm
C179: Konszignációs jele: B-308
C180: Készül: | D180: 1 | E180: db | H180: =D180*F180 -> 0 | I180: =D180*G180 -> 0
B181: 1.9 | C181: Tömör belsőajtó. Alagsori raktár.
C182: Fő jellemzők : tok RAL 7035 színű acél saroktok, ajtólap furatolt faforgács betétes, törtfehér színű HPL bevonattal.
C183: Nyitása: egyszárnyú nyíló
C184: Névleges mérete: 100 / 212,5 cm
C185: Konszignációs jele: B-309
C186: Készül: | D186: 1 | E186: db | H186: =D186*F186 -> 0 | I186: =D186*G186 -> 0
B187: 1.10 | C187: Tömör belsőajtó. Szertár, tanári.
C188: Fő jellemzők : tok RAL 7035 színű acél saroktok, ajtólap furatolt faforgácslap betétes, törtfehér színű HPL bevonattal, max. 2 cm magas küszöbbel.
C189: Nyitása: egyszárnyú nyíló
C190: Névleges mérete: 100 / 212,5 cm
C191: Konszignációs jele: B-311
C192: Készül: | D192: 5 | E192: db | H192: =D192*F192 -> 0 | I192: =D192*G192 -> 0
B193: 1.11 | C193: Tömör belsőajtó. Szertár, tanári.
C194: Fő jellemzők : tok RAL 7035 színű átfogó acéltok, ajtólap furatolt faforgács betétes, törtfehér színű HPL bevonattal, max. 2 cm magas küszöbbel.
C195: Nyitása: egyszárnyú nyíló
C196: Névleges mérete: 100 / 212,5 cm
C197: Konszignációs jele: B-312
C198: Készül: | D198: 3 | E198: db | H198: =D198*F198 -> 0 | I198: =D198*G198 -> 0
B199: 1.12 | C199: Mélyenüvegezett belsőajtó. Porta.
C200: Fő jellemzők : tok RAL 7035 színű átfogó acéltok, ajtólap furatolt faforgács betétes, törtfehér színű HPL bevonattal, 1 réteg biztonsági üvegezéssel.
C201: Nyitása: egyszárnyú nyíló
C202: Névleges mérete: 100 / 212,5 cm
C203: Konszignációs jele: B-313
C204: Készül: | D204: 1 | E204: db | H204: =D204*F204 -> 0 | I204: =D204*G204 -> 0
B205: 1.13 | C205: Tömör belsőajtó. Énekterem.
C206: Fő jellemzők : tok RAL 7035 színű acél saroktok, ajtólap tömör faforgács betétes, törtfehér színű HPL bevonattal, a közlekedő felé dekorációs betéttel, süllyesztett automata küszöbbel, 42 dB hanggátlással.
C207: Nyitása: egyszárnyú nyíló
C208: Névleges mérete: 100 / 212,5 cm
C209: Konszignációs jele: B-314
... 498 more rows
